Workbook

Sheet Príručka
G1: PRÍRUČKA | H1: PRÍJEM
B2: OSOBNÝ PEŇAŽNÝ TOK
B3: Tento zošit obsahuje hárky pre ročný, mesačný a denný peňažný tok. Vyberte si typ peňažného toku, ktorý vám najviac vyhovuje, alebo ich používajte všetky naraz, aby ste získali dokonalý prehľad o svojom osobnom peňažnom toku.
B5: Ročný peňažný tok | D5: Mesačný peňažný tok | F5: Denný peňažný tok
B6: Zadajte sumy ročného peňažného toku v rámci rôznych oblastí. Pozrite si mesačný rozpis aj porovnania, ale hlavne si pozrite konečné súčty ročných aj mesačných čísel. | D6: Zadajte mesačný peňažný tok vytvorený z položiek za mesiac alebo odhadnite zostávajúce mesiace, aby ste spoznali predpokladaný peňažný tok na rok či jednotlivé mesiace. | F6: Zadajte odhadovanú sumu peňažného roku vytvoreného z denných položiek a pozrite si odhadovaný mesačný či ročný súčet. Pomocou tejto šablóny získate predstavu o svojich návykoch pri denných výdavkoch v priebehu mesiaca či roka.

Sheet Ročný peňažný tok
B1: OSOBNÝ PEŇAŽNÝ TOK | G1: PRÍRUČKA | H1: ROČNÝ PEŇAŽNÝ TOK | J1: MESAČNÝ PEŇAŽNÝ TOK
B2: Celkový peňažný tok k dnešnému dňu: | D2: =RočnýPeňažnýTokKDátumu -> 39,750.00 € | G2: Toto je ročný odhad. Tento hárok použite, ak si chcete pozrieť ročné sumy s odhadnutými mesačnými hodnotami. Denné položky môžete pridať na ďalších hárkoch.
B3: SÚHRN PRÍJMOV | F3: SÚHRN VÝDAVKOV | J3: SÚHRN NEPOVINNÝCH VÝDAVKOV | N3: SÚHRN ÚSPOR
B4: Celkovo za rok: | C4: =Príjem!C10 -> 125,000.00 € | F4: Celkovo za rok: | G4: =Výdavky[[#Totals],[Ročne ]] -> 49,000.00 € | J4: Celkovo za rok: | K4: =NepovinnéVýdavky[[#Totals],[Ročne ]] -> 13,250.00 € | N4: Celkovo za rok: | O4: =Úspory[[#Totals],[Ročne ]] -> 23,000.00 €
B5: V tejto bunke sa nachádza koláčový graf zobrazujúci príjem z rôznych zdrojov. | F5: V tejto bunke sa nachádza koláčový graf zobrazujúci výdavky. | J5: V tejto bunke sa nachádza koláčový graf zobrazujúci nepovinné výdavky. | N5: V tejto bunke sa nachádza koláčový graf zobrazujúci úspory a investície.
B6: Celkovo za mesiac: | C6: =Príjem!D10 -> 10,416.67 € | F6: Celkovo za mesiac: | G6: =Výdavky[[#Totals],[Mesačne ]] -> 4,083.33 € | J6: Celkovo za mesiac: | K6: =NepovinnéVýdavky[[#Totals],[Mesačne ]] -> 1,104.17 € | N6: Celkovo za mesiac: | O6: =Úspory!D9 -> 1,916.67 €

Sheet Mesačný peňažný tok
B1: OSOBNÝ PEŇAŽNÝ TOK | H1: PRÍRUČKA | I1: ROČNÝ PEŇAŽNÝ TOK | J1: MESAČNÝ PEŇAŽNÝ TOK | K1: DENNÝ SÚHRN
B2: Celkový mesačný peňažný tok: | D2: =MesačnýPeňažnýTokKDátumu -> 18,380.00 € | F2: POZNÁMKA: V prípade denných položiek odhadnite mesačnú sumu/hodnotu a zapíšte ju do stĺpca pre príslušný mesiac.
B3: Typ | C3: Popis | D3: Jan | E3: Feb | F3: Mar | G3: Apr | H3: Máj | I3: Jún | J3: Júl | K3: Aug | L3: Sep | M3: Okt | N3: Nov | O3: Dec | P3: Celková hodnota
B4: Príjmy | C4: Mzda | D4: 7,500.00 € | E4: 7,500.00 € | F4: 7,500.00 € | G4: 7,500.00 € | H4: 7,500.00 € | I4: 7,500.00 € | P4: =SUM(Mesačne[[#This Row],[Jan]:[Dec]]) -> 45,000.00 €
B5: Príjmy | C5: Provízie/prémie | D5: 400.00 € | E5: 400.00 € | F5: 500.00 € | G5: 200.00 € | H5: 0.00 € | I5: 600.00 € | P5: =SUM(Mesačne[[#This Row],[Jan]:[Dec]]) -> 2,100.00 €
B6: Príjmy | C6: Iné 1 | D6: 2,500.00 € | E6: 2,500.00 € | F6: 2,500.00 € | G6: 2,500.00 € | H6: 2,500.00 € | I6: 2,500.00 € | P6: =SUM(Mesačne[[#This Row],[Jan]:[Dec]]) -> 15,000.00 €
B7: Príjmy | C7: Iné 2 | D7: 0.00 € | E7: 0.00 € | F7: 0.00 € | G7: 0.00 € | H7: 0.00 € | I7: 0.00 € | P7: =SUM(Mesačne[[#This Row],[Jan]:[Dec]]) -> 0.00 €
B8: Príjmy | C8: Iné 3 | D8: 0.00 € | E8: 0.00 € | F8: 0.00 € | G8: 0.00 € | H8: 0.00 € | I8: 0.00 € | P8: =SUM(Mesačne[[#This Row],[Jan]:[Dec]]) -> 0.00 €
B9: Príjmy | C9: Iné 4 | D9: 0.00 € | E9: 0.00 € | F9: 0.00 € | G9: 0.00 € | H9: 0.00 € | I9: 0.00 € | P9: =SUM(Mesačne[[#This Row],[Jan]:[Dec]]) -> 0.00 €
B10: Výdavky | C10: Zdravotná starostlivosť/lekár | D10: 1,250.00 € | E10: 1,250.00 € | F10: 1,250.00 € | G10: 1,250.00 € | H10: 1,250.00 € | I10: 1,250.00 € | P10: =SUM(Mesačne[[#This Row],[Jan]:[Dec]]) -> 7,500.00 €
B11: Výdavky | C11: Štátna daň z príjmu | D11: 208.33 € | E11: 208.33 € | F11: 208.33 € | G11: 208.33 € | H11: 208.33 € | I11: 208.33 € | P11: =SUM(Mesačne[[#This Row],[Jan]:[Dec]]) -> 1,250.00 €
B12: Výdavky | C12: Poplatky/dane za automobil | D12: 16.67 € | E12: 16.67 € | F12: 16.67 € | G12: 16.67 € | H12: 16.67 € | I12: 16.67 € | P12: =SUM(Mesačne[[#This Row],[Jan]:[Dec]]) -> 100.00 €
B13: Výdavky | C13: Platby za automobil | D13: 333.33 € | E13: 333.33 € | F13: 333.33 € | G13: 333.33 € | H13: 333.33 € | I13: 333.33 € | P13: =SUM(Mesačne[[#This Row],[Jan]:[Dec]]) -> 2,000.00 €
B14: Výdavky | C14: Hypotéka/nájomné | D14: 1,250.00 € | E14: 1,250.00 € | F14: 1,250.00 € | G14: 1,250.00 € | H14: 1,250.00 € | I14: 1,250.00 € | P14: =SUM(Mesačne[[#This Row],[Jan]:[Dec]]) -> 7,500.00 €
B15: Výdavky | C15: Poistenie | D15: 25.00 € | E15: 25.00 € | F15: 25.00 € | G15: 25.00 € | H15: 25.00 € | I15: 25.00 € | P15: =SUM(Mesačne[[#This Row],[Jan]:[Dec]]) -> 150.00 €
B16: Výdavky | C16: Elektrina | D16: 100.00 € | E16: 100.00 € | F16: 100.00 € | G16: 100.00 € | H16: 100.00 € | I16: 100.00 € | P16: =SUM(Mesačne[[#This Row],[Jan]:[Dec]]) -> 600.00 €
B17: Výdavky | C17: Plyn | D17: 50.00 € | E17: 50.00 € | F17: 50.00 € | G17: 50.00 € | H17: 50.00 € | I17: 50.00 € | P17: =SUM(Mesačne[[#This Row],[Jan]:[Dec]]) -> 300.00 €
B18: Výdavky | C18: Voda | D18: 50.00 € | E18: 50.00 € | F18: 50.00 € | G18: 50.00 € | H18: 50.00 € | I18: 50.00 € | P18: =SUM(Mesačne[[#This Row],[Jan]:[Dec]]) -> 300.00 €
B19: Výdavky | C19: Kanalizácia | D19: 25.00 € | E19: 25.00 € | F19: 25.00 € | G19: 25.00 € | H19: 25.00 € | I19: 25.00 € | P19: =SUM(Mesačne[[#This Row],[Jan]:[Dec]]) -> 150.00 €
B20: Výdavky | C20: Odpad | D20: 12.50 € | E20: 12.50 € | F20: 12.50 € | G20: 12.50 € | H20: 12.50 € | I20: 12.50 € | P20: =SUM(Mesačne[[#This Row],[Jan]:[Dec]]) -> 75.00 €
B21: Výdavky | C21: Telefón | D21: 50.00 € | E21: 50.00 € | F21: 50.00 € | G21: 50.00 € | H21: 50.00 € | I21: 50.00 € | P21: =SUM(Mesačne[[#This Row],[Jan]:[Dec]]) -> 300.00 €
B22: Výdavky | C22: Internet | D22: 50.00 € | E22: 50.00 € | F22: 50.00 € | G22: 50.00 € | H22: 50.00 € | I22: 50.00 € | P22: =SUM(Mesačne[[#This Row],[Jan]:[Dec]]) -> 300.00 €
B23: Výdavky | C23: Životné poistenie/poistenie pre prípad invalidity | D23: 125.00 € | E23: 125.00 € | F23: 125.00 € | G23: 125.00 € | H23: 125.00 € | I23: 125.00 € | P23: =SUM(Mesačne[[#This Row],[Jan]:[Dec]]) -> 750.00 €
B24: Výdavky | C24: Strava | D24: 400.00 € | E24: 500.00 € | F24: 450.00 € | G24: 400.00 € | H24: 450.00 € | I24: 425.00 € | P24: =SUM(Mesačne[[#This Row],[Jan]:[Dec]]) -> 2,625.00 €
B25: Výdavky | C25: Oblečenie | D25: 50.00 € | E25: 75.00 € | F25: 100.00 € | G25: 75.00 € | H25: 125.00 € | I25: 75.00 € | P25: =SUM(Mesačne[[#This Row],[Jan]:[Dec]]) -> 500.00 €
B26: Výdavky | C26: Zdravotná starostlivosť/zubár/RTG | D26: 50.00 € | E26: 10.00 € | F26: 25.00 € | G26: 25.00 € | H26: 20.00 € | I26: 70.00 € | P26: =SUM(Mesačne[[#This Row],[Jan]:[Dec]]) -> 200.00 €
B27: Výdavky | C27: Autobus | D27: 30.00 € | E27: 30.00 € | F27: 30.00 € | G27: 20.00 € | H27: 30.00 € | I27: 30.00 € | P27: =SUM(Mesačne[[#This Row],[Jan]:[Dec]]) -> 170.00 €
B28: Výdavky | C28: Iné 2 | D28: 0.00 € | E28: 0.00 € | F28: 0.00 € | G28: 0.00 € | H28: 0.00 € | I28: 0.00 € | P28: =SUM(Mesačne[[#This Row],[Jan]:[Dec]]) -> 0.00 €
B29: Výdavky | C29: Iné 3 | D29: 0.00 € | E29: 0.00 € | F29: 0.00 € | G29: 0.00 € | H29: 0.00 € | I29: 0.00 € | P29: =SUM(Mesačne[[#This Row],[Jan]:[Dec]]) -> 0.00 €
B30: Výdavky | C30: Iné 4 | D30: 0.00 € | E30: 0.00 € | F30: 0.00 € | G30: 0.00 € | H30: 0.00 € | I30: 0.00 € | P30: =SUM(Mesačne[[#This Row],[Jan]:[Dec]]) -> 0.00 €
B31: Nepovinné výdavky | C31: Obedy | D31: 50.00 € | E31: 150.00 € | F31: 100.00 € | G31: 50.00 € | H31: 150.00 € | I31: 100.00 € | P31: =SUM(Mesačne[[#This Row],[Jan]:[Dec]]) -> 600.00 €
B32: Nepovinné výdavky | C32: Dary | D32: 25.00 € | E32: 75.00 € | F32: 50.00 € | G32: 25.00 € | H32: 75.00 € | I32: 50.00 € | P32: =SUM(Mesačne[[#This Row],[Jan]:[Dec]]) -> 300.00 €
B33: Nepovinné výdavky | C33: Cestovanie | D33: 0.00 € | E33: 0.00 € | F33: 1,000.00 € | G33: 0.00 € | H33: 0.00 € | I33: 1,000.00 € | P33: =SUM(Mesačne[[#This Row],[Jan]:[Dec]]) -> 2,000.00 €
B34: Nepovinné výdavky | C34: Zábava | D34: 50.00 € | E34: 150.00 € | F34: 100.00 € | G34: 50.00 € | H34: 150.00 € | I34: 100.00 € | P34: =SUM(Mesačne[[#This Row],[Jan]:[Dec]]) -> 600.00 €
B35: Nepovinné výdavky | C35: Osobná starostlivosť | D35: 15.00 € | E35: 25.00 € | F35: 35.00 € | G35: 15.00 € | H35: 25.00 € | I35: 35.00 € | P35: =SUM(Mesačne[[#This Row],[Jan]:[Dec]]) -> 150.00 €
B36: Nepovinné výdavky | C36: Nákupy | D36: 100.00 € | E36: 200.00 € | F36: 150.00 € | G36: 175.00 € | H36: 150.00 € | I36: 175.00 € | P36: =SUM(Mesačne[[#This Row],[Jan]:[Dec]]) -> 950.00 €
B37: Nepovinné výdavky | C37: Charita | D37: 50.00 € | E37: 50.00 € | F37: 50.00 € | G37: 50.00 € | H37: 50.00 € | I37: 50.00 € | P37: =SUM(Mesačne[[#This Row],[Jan]:[Dec]]) -> 300.00 €
B38: Nepovinné výdavky | C38: Členstvá v kluboch | D38: 25.00 € | E38: 25.00 € | F38: 25.00 € | G38: 25.00 € | H38: 25.00 € | I38: 25.00 € | P38: =SUM(Mesačne[[#This Row],[Jan]:[Dec]]) -> 150.00 €
B39: Nepovinné výdavky | C39: Opravy v domácnosti | D39: 400.00 € | E39: 400.00 € | F39: 400.00 € | G39: 400.00 € | H39: 400.00 € | I39: 400.00 € | P39: =SUM(Mesačne[[#This Row],[Jan]:[Dec]]) -> 2,400.00 €
B40: Nepovinné výdavky | C40: Iné 1 | D40: 0.00 € | E40: 0.00 € | F40: 0.00 € | G40: 0.00 € | H40: 0.00 € | I40: 0.00 € | P40: =SUM(Mesačne[[#This Row],[Jan]:[Dec]]) -> 0.00 €
B41: Nepovinné výdavky | C41: Iné 2 | D41: 0.00 € | E41: 0.00 € | F41: 0.00 € | G41: 0.00 € | H41: 0.00 € | I41: 0.00 € | P41: =SUM(Mesačne[[#This Row],[Jan]:[Dec]]) -> 0.00 €
B42: Úspory | C42: Peňažná rezerva | D42: 416.67 € | E42: 416.67 € | F42: 416.67 € | G42: 416.67 € | H42: 416.67 € | I42: 416.67 € | P42: =SUM(Mesačne[[#This Row],[Jan]:[Dec]]) -> 2,500.00 €
B43: Úspory | C43: 401 000/iné | D43: 1,000.00 € | E43: 1,000.00 € | F43: 1,000.00 € | G43: 1,000.00 € | H43: 1,000.00 € | I43: 1,000.00 € | P43: =SUM(Mesačne[[#This Row],[Jan]:[Dec]]) -> 6,000.00 €
B44: Úspory | C44: Úspory/investície | D44: 500.00 € | E44: 500.00 € | F44: 500.00 € | G44: 500.00 € | H44: 500.00 € | I44: 500.00 € | P44: =SUM(Mesačne[[#This Row],[Jan]:[Dec]]) -> 3,000.00 €
B45: Úspory | C45: Iné 1 | D45: 0.00 € | E45: 0.00 € | F45: 0.00 € | G45: 0.00 € | H45: 0.00 € | I45: 0.00 € | P45: =SUM(Mesačne[[#This Row],[Jan]:[Dec]]) -> 0.00 €
B46: Úspory | C46: Iné 2 | D46: 0.00 € | E46: 0.00 € | F46: 0.00 € | G46: 0.00 € | H46: 0.00 € | I46: 0.00 € | P46: =SUM(Mesačne[[#This Row],[Jan]:[Dec]]) -> 0.00 €
B47: Celková hodnota | D47: =SUMIF(Mesačne[Typ],"Príjmy",Mesačne[Jan])-SUMIF(Mesačne[Typ],"<>Príjmy",Mesačne[Jan]) -> 3,692.50 € | E47: =SUMIF(Mesačne[Typ],"Príjmy",Mesačne[Feb])-SUMIF(Mesačne[Typ],"<>Príjmy",Mesačne[Feb]) -> 3,247.50 € | F47: =SUMIF(Mesačne[Typ],"Príjmy",Mesačne[Mar])-SUMIF(Mesačne[Typ],"<>Príjmy",Mesačne[Mar]) -> 2,522.50 € | G47: =SUMIF(Mesačne[Typ],"Príjmy",Mesačne[Apr])-SUMIF(Mesačne[Typ],"<>Príjmy",Mesačne[Apr]) -> 3,427.50 € | H47: =SUMIF(Mesačne[Typ],"Príjmy",Mesačne[Máj])-SUMIF(Mesačne[Typ],"<>Príjmy",Mesačne[Máj]) -> 2,887.50 € | I47: =SUMIF(Mesačne[Typ],"Príjmy",Mesačne[Jún])-SUMIF(Mesačne[Typ],"<>Príjmy",Mesačne[Jún]) -> 2,602.50 € | J47: =SUMIF(Mesačne[Typ],"Príjmy",Mesačne[Júl])-SUMIF(Mesačne[Typ],"<>Príjmy",Mesačne[Júl]) -> 0.00 € | K47: =SUMIF(Mesačne[Typ],"Príjmy",Mesačne[Aug])-SUMIF(Mesačne[Typ],"<>Príjmy",Mesačne[Aug]) -> 0.00 € | L47: =SUMIF(Mesačne[Typ],"Príjmy",Mesačne[Sep])-SUMIF(Mesačne[Typ],"<>Príjmy",Mesačne[Sep]) -> 0.00 € | M47: =SUMIF(Mesačne[Typ],"Príjmy",Mesačne[Okt])-SUMIF(Mesačne[Typ],"<>Príjmy",Mesačne[Okt]) -> 0.00 € | N47: =SUMIF(Mesačne[Typ],"Príjmy",Mesačne[Nov])-SUMIF(Mesačne[Typ],"<>Príjmy",Mesačne[Nov]) -> 0.00 € | O47: =SUMIF(Mesačne[Typ],"Príjmy",Mesačne[Dec])-SUMIF(Mesačne[Typ],"<>Príjmy",Mesačne[Dec]) -> 0.00 € | P47: =SUMIF(Mesačne[Typ],"Príjmy",Mesačne[Celková hodnota])-SUMIF(Mesačne[Typ],"<>Príjmy",Mesačne[Celková hodnota]) -> 18,380.00 €

Sheet Denný súhrn
B1: OSOBNÝ PEŇAŽNÝ TOK | F1: PRÍRUČKA | G1: MESAČNÝ PEŇAŽNÝ TOK | H1: DENNÝ SÚHRN | I1: PRÍJEM
B2: Celkové dostupné prostriedky: | D2: =DennýPeňažnýTok -> 577.84 € | F2: POZNÁMKA: Ak chcete do tabuľky pridať denné položky, odhadnite ich mesačnú sumu/hodnotu a zapíšte ju do stĺpca pre príslušný mesiac.
B3: DENNÝ SÚHRN
B4: SÚČTY | C4: Denne | D4: Mesačne | E4: Ročne
B5: Príjmy | C5: =SUMIF(Denne[Typ],$B5,Denne[Denne]) -> 342.47 € | D5: =SUMIF(Denne[Typ],$B5,Denne[Mesačne]) -> 10,416.80 € | E5: =SUMIF(Denne[Typ],$B5,Denne[Ročne]) -> 125,001.55 €
B6: Výdavky | C6: =SUMIF(Denne[Typ],$B6,Denne[Denne]) -> 136.06 € | D6: =SUMIF(Denne[Typ],$B6,Denne[Mesačne]) -> 4,138.49 € | E6: =SUMIF(Denne[Typ],$B6,Denne[Ročne]) -> 49,661.90 €
B7: Nepovinné výdavky | C7: =SUMIF(Denne[Typ],$B7,Denne[Denne]) -> 36.29 € | D7: =SUMIF(Denne[Typ],$B7,Denne[Mesačne]) -> 1,103.82 € | E7: =SUMIF(Denne[Typ],$B7,Denne[Ročne]) -> 13,245.85 €
B8: Úspory | C8: =SUMIF(Denne[Typ],$B8,Denne[Denne]) -> 63.02 € | D8: =SUMIF(Denne[Typ],$B8,Denne[Mesačne]) -> 1,916.86 € | E8: =SUMIF(Denne[Typ],$B8,Denne[Ročne]) -> 23,002.30 €
B9: Typ | C9: Popis | D9: Denne | E9: Mesačne | F9: Ročne
B10: Príjmy | C10: Mzda | D10: 246.58 € | E10: =Denne[[#This Row],[Ročne]]/12 -> 7,500.14 € | F10: =Denne[[#This Row],[Denne]]*365 -> 90,001.70 €
B11: Príjmy | C11: Provízie/prémie | D11: 13.70 € | E11: =Denne[[#This Row],[Ročne]]/12 -> 416.71 € | F11: =Denne[[#This Row],[Denne]]*365 -> 5,000.50 €
B12: Príjmy | C12: Iné 1 | D12: 82.19 € | E12: =Denne[[#This Row],[Ročne]]/12 -> 2,499.95 € | F12: =Denne[[#This Row],[Denne]]*365 -> 29,999.35 €
B13: Príjmy | C13: Iné 2 | D13: 0.00 € | E13: =Denne[[#This Row],[Ročne]]/12 -> 0.00 € | F13: =Denne[[#This Row],[Denne]]*365 -> 0.00 €
B14: Príjmy | C14: Iné 3 | D14: 0.00 € | E14: =Denne[[#This Row],[Ročne]]/12 -> 0.00 € | F14: =Denne[[#This Row],[Denne]]*365 -> 0.00 €
B15: Príjmy | C15: Iné 4 | D15: 0.00 € | E15: =Denne[[#This Row],[Ročne]]/12 -> 0.00 € | F15: =Denne[[#This Row],[Denne]]*365 -> 0.00 €
B16: Výdavky | C16: Zdravotná starostlivosť/lekár | D16: 41.10 € | E16: =Denne[[#This Row],[Ročne]]/12 -> 1,250.13 € | F16: =Denne[[#This Row],[Denne]]*365 -> 15,001.50 €
B17: Výdavky | C17: Štátna daň z príjmu | D17: 6.85 € | E17: =Denne[[#This Row],[Ročne]]/12 -> 208.35 € | F17: =Denne[[#This Row],[Denne]]*365 -> 2,500.25 €
B18: Výdavky | C18: Poplatky/dane za automobil | D18: 0.55 € | E18: =Denne[[#This Row],[Ročne]]/12 -> 16.73 € | F18: =Denne[[#This Row],[Denne]]*365 -> 200.75 €
B19: Výdavky | C19: Platby za automobil | D19: 10.96 € | E19: =Denne[[#This Row],[Ročne]]/12 -> 333.37 € | F19: =Denne[[#This Row],[Denne]]*365 -> 4,000.40 €
B20: Výdavky | C20: Hypotéka/nájomné | D20: 41.10 € | E20: =Denne[[#This Row],[Ročne]]/12 -> 1,250.13 € | F20: =Denne[[#This Row],[Denne]]*365 -> 15,001.50 €
B21: Výdavky | C21: Poistenie | D21: 0.68 € | E21: =Denne[[#This Row],[Ročne]]/12 -> 20.68 € | F21: =Denne[[#This Row],[Denne]]*365 -> 248.20 €
B22: Výdavky | C22: Elektrina | D22: 3.29 € | E22: =Denne[[#This Row],[Ročne]]/12 -> 100.07 € | F22: =Denne[[#This Row],[Denne]]*365 -> 1,200.85 €
B23: Výdavky | C23: Plyn | D23: 1.64 € | E23: =Denne[[#This Row],[Ročne]]/12 -> 49.88 € | F23: =Denne[[#This Row],[Denne]]*365 -> 598.60 €
B24: Výdavky | C24: Voda | D24: 1.64 € | E24: =Denne[[#This Row],[Ročne]]/12 -> 49.88 € | F24: =Denne[[#This Row],[Denne]]*365 -> 598.60 €
B25: Výdavky | C25: Kanalizácia | D25: 0.82 € | E25: =Denne[[#This Row],[Ročne]]/12 -> 24.94 € | F25: =Denne[[#This Row],[Denne]]*365 -> 299.30 €
B26: Výdavky | C26: Odpad | D26: 0.41 € | E26: =Denne[[#This Row],[Ročne]]/12 -> 12.47 € | F26: =Denne[[#This Row],[Denne]]*365 -> 149.65 €
B27: Výdavky | C27: Telefón | D27: 1.64 € | E27: =Denne[[#This Row],[Ročne]]/12 -> 49.88 € | F27: =Denne[[#This Row],[Denne]]*365 -> 598.60 €
B28: Výdavky | C28: Internet | D28: 1.64 € | E28: =Denne[[#This Row],[Ročne]]/12 -> 49.88 € | F28: =Denne[[#This Row],[Denne]]*365 -> 598.60 €
B29: Výdavky | C29: Životné poistenie/poistenie pre prípad invalidity | D29: 4.11 € | E29: =Denne[[#This Row],[Ročne]]/12 -> 125.01 € | F29: =Denne[[#This Row],[Denne]]*365 -> 1,500.15 €
B30: Výdavky | C30: Strava | D30: 13.70 € | E30: =Denne[[#This Row],[Ročne]]/12 -> 416.71 € | F30: =Denne[[#This Row],[Denne]]*365 -> 5,000.50 €
B31: Výdavky | C31: Oblečenie | D31: 3.29 € | E31: =Denne[[#This Row],[Ročne]]/12 -> 100.07 € | F31: =Denne[[#This Row],[Denne]]*365 -> 1,200.85 €
B32: Výdavky | C32: Zdravotná starostlivosť/zubár/RTG | D32: 1.64 € | E32: =Denne[[#This Row],[Ročne]]/12 -> 49.88 € | F32: =Denne[[#This Row],[Denne]]*365 -> 598.60 €
B33: Výdavky | C33: Autobus | D33: 1.00 € | E33: =Denne[[#This Row],[Ročne]]/12 -> 30.42 € | F33: =Denne[[#This Row],[Denne]]*365 -> 365.00 €
B34: Výdavky | C34: Iné 2 | D34: 0.00 € | E34: =Denne[[#This Row],[Ročne]]/12 -> 0.00 € | F34: =Denne[[#This Row],[Denne]]*365 -> 0.00 €
B35: Výdavky | C35: Iné 3 | D35: 0.00 € | E35: =Denne[[#This Row],[Ročne]]/12 -> 0.00 € | F35: =Denne[[#This Row],[Denne]]*365 -> 0.00 €
B36: Výdavky | C36: Iné 4 | D36: 0.00 € | E36: =Denne[[#This Row],[Ročne]]/12 -> 0.00 € | F36: =Denne[[#This Row],[Denne]]*365 -> 0.00 €
B37: Nepovinné výdavky | C37: Obedy | D37: 3.29 € | E37: =Denne[[#This Row],[Ročne]]/12 -> 100.07 € | F37: =Denne[[#This Row],[Denne]]*365 -> 1,200.85 €
B38: Nepovinné výdavky | C38: Dary | D38: 1.64 € | E38: =Denne[[#This Row],[Ročne]]/12 -> 49.88 € | F38: =Denne[[#This Row],[Denne]]*365 -> 598.60 €
B39: Nepovinné výdavky | C39: Cestovanie | D39: 6.16 € | E39: =Denne[[#This Row],[Ročne]]/12 -> 187.37 € | F39: =Denne[[#This Row],[Denne]]*365 -> 2,248.40 €
B40: Nepovinné výdavky | C40: Zábava | D40: 3.29 € | E40: =Denne[[#This Row],[Ročne]]/12 -> 100.07 € | F40: =Denne[[#This Row],[Denne]]*365 -> 1,200.85 €
B41: Nepovinné výdavky | C41: Osobná starostlivosť | D41: 0.82 € | E41: =Denne[[#This Row],[Ročne]]/12 -> 24.94 € | F41: =Denne[[#This Row],[Denne]]*365 -> 299.30 €
B42: Nepovinné výdavky | C42: Nákupy | D42: 5.48 € | E42: =Denne[[#This Row],[Ročne]]/12 -> 166.68 € | F42: =Denne[[#This Row],[Denne]]*365 -> 2,000.20 €
B43: Nepovinné výdavky | C43: Charita | D43: 1.64 € | E43: =Denne[[#This Row],[Ročne]]/12 -> 49.88 € | F43: =Denne[[#This Row],[Denne]]*365 -> 598.60 €
B44: Nepovinné výdavky | C44: Členstvá v kluboch | D44: 0.82 € | E44: =Denne[[#This Row],[Ročne]]/12 -> 24.94 € | F44: =Denne[[#This Row],[Denne]]*365 -> 299.30 €
B45: Nepovinné výdavky | C45: Opravy v domácnosti | D45: 13.15 € | E45: =Denne[[#This Row],[Ročne]]/12 -> 399.98 € | F45: =Denne[[#This Row],[Denne]]*365 -> 4,799.75 €
B46: Nepovinné výdavky | C46: Iné 1 | D46: 0.00 € | E46: =Denne[[#This Row],[Ročne]]/12 -> 0.00 € | F46: =Denne[[#This Row],[Denne]]*365 -> 0.00 €
B47: Nepovinné výdavky | C47: Iné 2 | D47: 0.00 € | E47: =Denne[[#This Row],[Ročne]]/12 -> 0.00 € | F47: =Denne[[#This Row],[Denne]]*365 -> 0.00 €
B48: Úspory | C48: Peňažná rezerva | D48: 13.70 € | E48: =Denne[[#This Row],[Ročne]]/12 -> 416.71 € | F48: =Denne[[#This Row],[Denne]]*365 -> 5,000.50 €
B49: Úspory | C49: 401 000/iné | D49: 32.88 € | E49: =Denne[[#This Row],[Ročne]]/12 -> 1,000.10 € | F49: =Denne[[#This Row],[Denne]]*365 -> 12,001.20 €
B50: Úspory | C50: Úspory/investície | D50: 16.44 € | E50: =Denne[[#This Row],[Ročne]]/12 -> 500.05 € | F50: =Denne[[#This Row],[Denne]]*365 -> 6,000.60 €
B51: Úspory | C51: Iné 1 | D51: 0.00 € | E51: =Denne[[#This Row],[Ročne]]/12 -> 0.00 € | F51: =Denne[[#This Row],[Denne]]*365 -> 0.00 €
B52: Úspory | C52: Iné 2 | D52: 0.00 € | E52: =Denne[[#This Row],[Ročne]]/12 -> 0.00 € | F52: =Denne[[#This Row],[Denne]]*365 -> 0.00 €
B53: Celková hodnota | D53: =SUMIF(Denne[Typ],"Príjmy",Denne[Denne])-SUMIF(Denne[Typ],"<>Príjmy",Denne[Denne]) -> 107.10 € | E53: =SUMIF(Denne[Typ],"Príjmy",Denne[Mesačne])-SUMIF(Denne[Typ],"<>Príjmy",Denne[Mesačne]) -> 3,257.63 € | F53: =SUMIF(Denne[Typ],"Príjmy",Denne[Ročne])-SUMIF(Denne[Typ],"<>Príjmy",Denne[Ročne]) -> 39,091.50 €

Sheet Príjem
B1: OSOBNÝ PEŇAŽNÝ TOK | F1: PRÍRUČKA | G1: DENNÝ SÚHRN | H1: PRÍJEM | I1: VÝDAVKY
B2: Celkový peňažný tok k dnešnému dňu: | D2: =RočnýPeňažnýTokKDátumu -> 39,750.00 € | F2: Toto je ročný odhad. Tento hárok použite, ak si chcete pozrieť ročné sumy s odhadnutými mesačnými hodnotami. Ak chcete do tabuľky pridať denné položky, odhadnite ich ročnú sumu/hodnotu a zapíšte ju do stĺpca pre ročné výdavky.
B3: Príjmy | C3: Ročne | D3: Mesačne
B4: Mzda | C4: 90,000.00 € | D4: =Príjmy[[#This Row],[Ročne ]]/12 -> 7,500.00 €
B5: Provízie/prémie | C5: 5,000.00 € | D5: =Príjmy[[#This Row],[Ročne ]]/12 -> 416.67 €
B6: Iné 1 | C6: 30,000.00 € | D6: =Príjmy[[#This Row],[Ročne ]]/12 -> 2,500.00 €
B7: Iné 2 | D7: =Príjmy[[#This Row],[Ročne ]]/12 -> 0.00 €
B8: Iné 3 | D8: =Príjmy[[#This Row],[Ročne ]]/12 -> 0.00 €
B9: Iné 4 | D9: =Príjmy[[#This Row],[Ročne ]]/12 -> 0.00 €
B10: Celková hodnota | C10: =SUBTOTAL(109,Príjmy[[Ročne ]]) -> 125,000.00 € | D10: =SUBTOTAL(109,Príjmy[[Mesačne ]]) -> 10,416.67 €

Sheet Výdavky
B1: OSOBNÝ PEŇAŽNÝ TOK | F1: PRÍRUČKA | G1: PRÍJEM | H1: VÝDAVKY | I1: NEPOVINNÉ VÝDAVKY
B2: Celkový peňažný tok k dnešnému dňu: | D2: =RočnýPeňažnýTokKDátumu -> 39,750.00 € | F2: Toto je ročný odhad. Tento hárok použite, ak si chcete pozrieť ročné sumy s odhadnutými mesačnými hodnotami. Ak chcete do tabuľky pridať denné položky, odhadnite ich ročnú sumu/hodnotu a zapíšte ju do stĺpca pre ročné výdavky.
B3: Výdavky | C3: Ročne | D3: Mesačne
B4: Zdravotná starostlivosť/lekár | C4: 15,000.00 € | D4: =Výdavky[[#This Row],[Ročne ]]/12 -> 1,250.00 €
B5: Štátna daň z príjmu | C5: 2,500.00 € | D5: =Výdavky[[#This Row],[Ročne ]]/12 -> 208.33 €
B6: Poplatky/dane za automobil | C6: 200.00 € | D6: =Výdavky[[#This Row],[Ročne ]]/12 -> 16.67 €
B7: Platby za automobil | C7: 4,000.00 € | D7: =Výdavky[[#This Row],[Ročne ]]/12 -> 333.33 €
B8: Hypotéka/nájomné | C8: 15,000.00 € | D8: =Výdavky[[#This Row],[Ročne ]]/12 -> 1,250.00 €
B9: Poistenie | C9: 250.00 € | D9: =Výdavky[[#This Row],[Ročne ]]/12 -> 20.83 €
B10: Elektrina | C10: 1,200.00 € | D10: =Výdavky[[#This Row],[Ročne ]]/12 -> 100.00 €
B11: Plyn | C11: 600.00 € | D11: =Výdavky[[#This Row],[Ročne ]]/12 -> 50.00 €
B12: Voda/kanalizácia | C12: 600.00 € | D12: =Výdavky[[#This Row],[Ročne ]]/12 -> 50.00 €
B13: Odpad | C13: 150.00 € | D13: =Výdavky[[#This Row],[Ročne ]]/12 -> 12.50 €
B14: Telefón | C14: 600.00 € | D14: =Výdavky[[#This Row],[Ročne ]]/12 -> 50.00 €
B15: Internet | C15: 600.00 € | D15: =Výdavky[[#This Row],[Ročne ]]/12 -> 50.00 €
B16: Životné poistenie/poistenie pre prípad invalidity | C16: 1,500.00 € | D16: =Výdavky[[#This Row],[Ročne ]]/12 -> 125.00 €
B17: Strava | C17: 5,000.00 € | D17: =Výdavky[[#This Row],[Ročne ]]/12 -> 416.67 €
B18: Oblečenie | C18: 1,200.00 € | D18: =Výdavky[[#This Row],[Ročne ]]/12 -> 100.00 €
B19: Zdravotná starostlivosť/zubár/RTG | C19: 600.00 € | D19: =Výdavky[[#This Row],[Ročne ]]/12 -> 50.00 €
B20: Iné 1 | D20: =Výdavky[[#This Row],[Ročne ]]/12 -> 0.00 €
B21: Iné 2 | D21: =Výdavky[[#This Row],[Ročne ]]/12 -> 0.00 €
B22: Celková hodnota | C22: =SUBTOTAL(109,Výdavky[[Ročne ]]) -> 49,000.00 € | D22: =SUBTOTAL(109,Výdavky[[Mesačne ]]) -> 4,083.33 €

Sheet Nepovinné výdavky
B1: OSOBNÝ PEŇAŽNÝ TOK | F1: PRÍRUČKA | G1: VÝDAVKY | H1: NEPOVINNÉ VÝDAVKY | I1: ÚSPORY
B2: Celkový peňažný tok k dnešnému dňu: | D2: =RočnýPeňažnýTokKDátumu -> 39,750.00 € | F2: Toto je ročný odhad. Tento hárok použite, ak si chcete pozrieť ročné sumy s odhadnutými mesačnými hodnotami. Ak chcete do tabuľky pridať denné položky, odhadnite ich ročnú sumu/hodnotu a zapíšte ju do stĺpca pre ročné výdavky.
B3: Nepovinné výdavky | C3: Ročne | D3: Mesačne
B4: Obedy | C4: 1,200.00 € | D4: =NepovinnéVýdavky[[#This Row],[Ročne ]]/12 -> 100.00 €
B5: Dary | C5: 600.00 € | D5: =NepovinnéVýdavky[[#This Row],[Ročne ]]/12 -> 50.00 €
B6: Cestovanie | C6: 2,250.00 € | D6: =NepovinnéVýdavky[[#This Row],[Ročne ]]/12 -> 187.50 €
B7: Zábava | C7: 1,200.00 € | D7: =NepovinnéVýdavky[[#This Row],[Ročne ]]/12 -> 100.00 €
B8: Osobná starostlivosť | C8: 300.00 € | D8: =NepovinnéVýdavky[[#This Row],[Ročne ]]/12 -> 25.00 €
B9: Nákupy | C9: 2,000.00 € | D9: =NepovinnéVýdavky[[#This Row],[Ročne ]]/12 -> 166.67 €
B10: Charita | C10: 600.00 € | D10: =NepovinnéVýdavky[[#This Row],[Ročne ]]/12 -> 50.00 €
B11: Členstvá v kluboch | C11: 300.00 € | D11: =NepovinnéVýdavky[[#This Row],[Ročne ]]/12 -> 25.00 €
B12: Opravy v domácnosti | C12: 4,800.00 € | D12: =NepovinnéVýdavky[[#This Row],[Ročne ]]/12 -> 400.00 €
B13: Iné 1 | D13: =NepovinnéVýdavky[[#This Row],[Ročne ]]/12 -> 0.00 €
B14: Iné 2 | D14: =NepovinnéVýdavky[[#This Row],[Ročne ]]/12 -> 0.00 €
B15: Celková hodnota | C15: =SUBTOTAL(109,NepovinnéVýdavky[[Ročne ]]) -> 13,250.00 € | D15: =SUBTOTAL(109,NepovinnéVýdavky[[Mesačne ]]) -> 1,104.17 €

Sheet Úspory
B1: OSOBNÝ PEŇAŽNÝ TOK | F1: PRÍRUČKA | G1: NEPOVINNÉ VÝDAVKY | H1: ÚSPORY
B2: Celkový peňažný tok k dnešnému dňu: | D2: =RočnýPeňažnýTokKDátumu -> 39,750.00 € | F2: Toto je ročný odhad. Tento hárok použite, ak si chcete pozrieť ročné sumy s odhadnutými mesačnými hodnotami. Ak chcete do tabuľky pridať denné položky, odhadnite ich ročnú sumu/hodnotu a zapíšte ju do stĺpca pre ročné výdavky.
B3: Úspory | C3: Ročne | D3: Mesačne
B4: Peňažná rezerva | C4: 5,000.00 € | D4: =Úspory[[#This Row],[Ročne ]]/12 -> 416.67 €
B5: 401 000/iné | C5: 12,000.00 € | D5: =Úspory[[#This Row],[Ročne ]]/12 -> 1,000.00 €
B6: Úspory/investície | C6: 6,000.00 € | D6: =Úspory[[#This Row],[Ročne ]]/12 -> 500.00 €
B7: Iné 1 | D7: =Úspory[[#This Row],[Ročne ]]/12 -> 0.00 €
B8: Iné 2 | D8: =Úspory[[#This Row],[Ročne ]]/12 -> 0.00 €
B9: Celková hodnota | C9: =SUBTOTAL(109,Úspory[[Ročne ]]) -> 23,000.00 € | D9: =SUBTOTAL(109,Úspory[[Mesačne ]]) -> 1,916.67 €
